[Event "Titled Tuesday Blitz August 15 Early 2023"]
[White "campochess"]
[Black "Bogaudinov, Rushan"]
[BlackFideId "4129288"]
[WhiteElo "2169"]
[BlackElo "2326"]
[Result "0-1"]
[Round "8"]
[TimeControl "180+1"]
[Date "2023.08.15"]
[WhiteClock "0:00:00"]
[BlackClock "0:00:49"]
[Board "158"]

1. d4 {[%clk 0:02:59]}  a5 {[%clk 0:03:00]} 2. e4 {[%clk 0:02:58]}  h5 {[%clk 0:03:01]} 3. Nf3 {[%clk 0:02:57]}  h4 {[%clk 0:03:01]} 4. h3 {[%clk 0:02:56]}  a4 {[%clk 0:03:01]} 5. a3 {[%clk 0:02:55]}  e6 {[%clk 0:03:01]} 6. c4 {[%clk 0:02:47]}  c5 {[%clk 0:02:57]} 7. d5 {[%clk 0:02:45]}  d6 {[%clk 0:02:57]} 8. Nc3 {[%clk 0:02:38]}  Nf6 {[%clk 0:02:56]} 9. Bg5 {[%clk 0:02:35]}  Be7 {[%clk 0:02:55]} 10. Bxh4 {[%clk 0:02:32]}  Qa5 {[%clk 0:02:53]} 11. Bxf6 {[%clk 0:02:29]}  Bxf6 {[%clk 0:02:53]} 12. Qd2 {[%clk 0:02:27]}  exd5 {[%clk 0:02:48]} 13. Nxd5 {[%clk 0:02:23]}  Qxd2+ {[%clk 0:02:47]} 14. Kxd2 {[%clk 0:02:23]}  Bd8 {[%clk 0:02:48]} 15. Bd3 {[%clk 0:02:11]}  O-O {[%clk 0:02:47]} 16. Rae1 {[%clk 0:02:06]}  Nc6 {[%clk 0:02:48]} 17. e5 {[%clk 0:02:05]}  dxe5 {[%clk 0:02:42]} 18. Nxe5 {[%clk 0:02:04]}  Nd4 {[%clk 0:02:34]} 19. g4 {[%clk 0:01:44]}  Be6 {[%clk 0:02:29]} 20. f4 {[%clk 0:01:37]}  Ba5+ {[%clk 0:02:18]} 21. Nc3 {[%clk 0:01:34]}  Rad8 {[%clk 0:02:04]} 22. Ke3 {[%clk 0:01:34]}  Rfe8 {[%clk 0:02:03]} 23. Kf2 {[%clk 0:01:34]}  f6 {[%clk 0:01:49]} 24. Ng6 {[%clk 0:01:14]}  Bxc3 {[%clk 0:01:46]} 25. bxc3 {[%clk 0:01:13]}  Nb3 {[%clk 0:01:43]} 26. Bf1 {[%clk 0:01:06]}  Nd2 {[%clk 0:01:36]} 27. f5 {[%clk 0:01:00]}  Bxc4 {[%clk 0:01:26]} 28. Bxc4+ {[%clk 0:00:42]}  Nxc4 {[%clk 0:01:27]} 29. Rxe8+ {[%clk 0:00:36]}  Rxe8 {[%clk 0:01:27]} 30. Rd1 {[%clk 0:00:35]}  b5 {[%clk 0:01:19]} 31. Rd7 {[%clk 0:00:35]}  Nxa3 {[%clk 0:01:15]} 32. Rc7 {[%clk 0:00:35]}  c4 {[%clk 0:01:14]} 33. h4 {[%clk 0:00:33]}  Nb1 {[%clk 0:01:12]} 34. h5 {[%clk 0:00:23]}  Nxc3 {[%clk 0:01:11]} 35. h6 {[%clk 0:00:23]}  gxh6 {[%clk 0:01:08]} 36. Kf3 {[%clk 0:00:21]}  a3 {[%clk 0:01:06]} 37. Ra7 {[%clk 0:00:19]}  b4 {[%clk 0:01:05]} 38. Nf4 {[%clk 0:00:16]}  a2 {[%clk 0:01:03]} 39. Nh5 {[%clk 0:00:16]}  Re7 {[%clk 0:00:55]} 40. Ra6 {[%clk 0:00:09]}  b3 {[%clk 0:00:51]} 41. Nxf6+ {[%clk 0:00:09]}  Kf7 {[%clk 0:00:50]} 42. Nh5 {[%clk 0:00:07]}  b2 {[%clk 0:00:49]} 43. Rf6+ {[%clk 0:00:00]}  Ke8 {[%clk 0:00:49]} 0-1


[Site "https://www.chess.com"]

[Event "Titled Tuesday Blitz August 15 Early 2023"]
[White "Larina, Maria"]
[Black "Blokhin, Sofia"]
[WhiteFideId "24113182"]
[BlackFideId "4508190"]
[WhiteElo "2120"]
[BlackElo "2284"]
[Result "1/2-1/2"]
[Round "8"]
[TimeControl "180+1"]
[Date "2023.08.15"]
[WhiteClock "0:00:06"]
[BlackClock "0:00:07"]
[Board "164"]

1. e4 {[%clk 0:03:00]}  c5 {[%clk 0:02:58]} 2. Nc3 {[%clk 0:03:00]}  e6 {[%clk 0:02:58]} 3. Nf3 {[%clk 0:02:54]}  a6 {[%clk 0:02:57]} 4. g3 {[%clk 0:02:51]}  Nc6 {[%clk 0:02:55]} 5. Bg2 {[%clk 0:02:51]}  g6 {[%clk 0:02:54]} 6. d4 {[%clk 0:02:46]}  cxd4 {[%clk 0:02:52]} 7. Nxd4 {[%clk 0:02:45]}  Bg7 {[%clk 0:02:50]} 8. Nxc6 {[%clk 0:02:43]}  bxc6 {[%clk 0:02:46]} 9. Qd6 {[%clk 0:02:10]}  Qe7 {[%clk 0:02:44]} 10. e5 {[%clk 0:01:58]}  f6 {[%clk 0:02:42]} 11. Qxe7+ {[%clk 0:01:26]}  Nxe7 {[%clk 0:02:39]} 12. exf6 {[%clk 0:01:26]}  Bxf6 {[%clk 0:02:38]} 13. Ne4 {[%clk 0:01:26]}  Be5 {[%clk 0:02:34]} 14. O-O {[%clk 0:01:15]}  O-O {[%clk 0:02:27]} 15. Bh6 {[%clk 0:01:14]}  Rd8 {[%clk 0:02:14]} 16. c3 {[%clk 0:01:11]}  d5 {[%clk 0:02:12]} 17. Nc5 {[%clk 0:01:10]}  Bf6 {[%clk 0:02:07]} 18. Bh3 {[%clk 0:01:07]}  e5 {[%clk 0:02:02]} 19. Bg2 {[%clk 0:00:36]}  Nf5 {[%clk 0:01:57]} 20. Bd2 {[%clk 0:00:33]}  e4 {[%clk 0:01:51]} 21. Rad1 {[%clk 0:00:26]}  Rb8 {[%clk 0:01:49]} 22. Bc1 {[%clk 0:00:23]}  Rb5 {[%clk 0:01:47]} 23. Nb3 {[%clk 0:00:19]}  a5 {[%clk 0:01:43]} 24. Bh3 {[%clk 0:00:15]}  a4 {[%clk 0:01:40]} 25. Bxf5 {[%clk 0:00:14]}  axb3 {[%clk 0:01:32]} 26. Bxc8 {[%clk 0:00:12]}  bxa2 {[%clk 0:01:29]} 27. Be6+ {[%clk 0:00:10]}  Kf8 {[%clk 0:01:28]} 28. Bh6+ {[%clk 0:00:10]}  Ke7 {[%clk 0:01:26]} 29. Bg4 {[%clk 0:00:10]}  Rxb2 {[%clk 0:01:22]} 30. Ra1 {[%clk 0:00:09]}  Bxc3 {[%clk 0:01:20]} 31. Rfc1 {[%clk 0:00:09]}  d4 {[%clk 0:01:19]} 32. Bg5+ {[%clk 0:00:08]}  Ke8 {[%clk 0:01:18]} 33. Bxd8 {[%clk 0:00:09]}  Kxd8 {[%clk 0:01:19]} 34. Bd1 {[%clk 0:00:08]}  Rd2 {[%clk 0:01:09]} 35. Kf1 {[%clk 0:00:08]}  Bxa1 {[%clk 0:01:08]} 36. Rxa1 {[%clk 0:00:07]}  Rb2 {[%clk 0:01:04]} 37. Ke1 {[%clk 0:00:07]}  Rb1 {[%clk 0:01:03]} 38. Rxa2 {[%clk 0:00:07]}  c5 {[%clk 0:01:02]} 39. Ra5 {[%clk 0:00:07]}  Rc1 {[%clk 0:00:52]} 40. Kd2 {[%clk 0:00:07]}  Rc3 {[%clk 0:00:52]} 41. Ra7 {[%clk 0:00:07]}  e3+ {[%clk 0:00:40]} 42. fxe3 {[%clk 0:00:07]}  Rxe3 {[%clk 0:00:40]} 43. Rxh7 {[%clk 0:00:07]}  c4 {[%clk 0:00:39]} 44. Bg4 {[%clk 0:00:06]}  c3+ {[%clk 0:00:37]} 45. Kc2 {[%clk 0:00:07]}  Re4 {[%clk 0:00:32]} 46. Bf3 {[%clk 0:00:06]}  Re3 {[%clk 0:00:32]} 47. Bd5 {[%clk 0:00:05]}  Re2+ {[%clk 0:00:29]} 48. Kb3 {[%clk 0:00:04]}  Rb2+ {[%clk 0:00:25]} 49. Ka3 {[%clk 0:00:04]}  Rb5 {[%clk 0:00:20]} 50. Bb3 {[%clk 0:00:04]}  Ra5+ {[%clk 0:00:18]} 51. Kb4 {[%clk 0:00:03]}  Ra1 {[%clk 0:00:17]} 52. Kc4 {[%clk 0:00:03]}  Ra3 {[%clk 0:00:16]} 53. Rb7 {[%clk 0:00:02]}  Ra2 {[%clk 0:00:10]} 54. Kxd4 {[%clk 0:00:02]}  c2 {[%clk 0:00:10]} 55. Bxc2 {[%clk 0:00:03]}  Rxc2 {[%clk 0:00:09]} 56. h4 {[%clk 0:00:03]}  Rg2 {[%clk 0:00:07]} 57. Rb3 {[%clk 0:00:03]}  Ke8 {[%clk 0:00:07]} 58. Ke4 {[%clk 0:00:04]}  Kf7 {[%clk 0:00:07]} 59. Kf4 {[%clk 0:00:04]}  Kf6 {[%clk 0:00:07]} 60. g4 {[%clk 0:00:04]}  Rf2+ {[%clk 0:00:07]} 61. Kg3 {[%clk 0:00:04]}  Ra2 {[%clk 0:00:06]} 62. Rb6+ {[%clk 0:00:04]}  Kf7 {[%clk 0:00:05]} 63. Rb3 {[%clk 0:00:05]}  Ra4 {[%clk 0:00:05]} 64. Rf3+ {[%clk 0:00:05]}  Kg7 {[%clk 0:00:05]} 65. g5 {[%clk 0:00:05]}  Rb4 {[%clk 0:00:04]} 66. Re3 {[%clk 0:00:06]}  Ra4 {[%clk 0:00:05]} 67. Rd3 {[%clk 0:00:06]}  Rb4 {[%clk 0:00:05]} 68. Rd7+ {[%clk 0:00:07]}  Kf8 {[%clk 0:00:03]} 69. Kh3 {[%clk 0:00:07]}  Rb5 {[%clk 0:00:03]} 70. Rd6 {[%clk 0:00:07]}  Rb4 {[%clk 0:00:03]} 71. Rxg6 {[%clk 0:00:07]}  Kf7 {[%clk 0:00:04]} 72. Rf6+ {[%clk 0:00:07]}  Kg7 {[%clk 0:00:04]} 73. Rf3 {[%clk 0:00:08]}  Kg6 {[%clk 0:00:04]} 74. Rg3 {[%clk 0:00:08]}  Kh5 {[%clk 0:00:04]} 75. Re3 {[%clk 0:00:07]}  Rxh4+ {[%clk 0:00:04]} 76. Kg3 {[%clk 0:00:08]}  Rg4+ {[%clk 0:00:05]} 77. Kh3 {[%clk 0:00:08]}  Rxg5 {[%clk 0:00:05]} 78. Re4 {[%clk 0:00:08]}  Kh6 {[%clk 0:00:06]} 79. Rh4+ {[%clk 0:00:07]}  Rh5 {[%clk 0:00:06]} 80. Rxh5+ {[%clk 0:00:06]}  Kxh5 {[%clk 0:00:07]} 1/2-1/2


[Site "https://www.chess.com"]

[Event "Titled Tuesday Blitz August 15 Early 2023"]
[White "Mirzanurov, Bulat"]
[Black "Rodriguez Santiago, Jaime"]
[WhiteFideId "4184521"]
[BlackFideId "3100898"]
[WhiteElo "2206"]
[BlackElo "2266"]
[Result "0-1"]
[Round "8"]
[TimeControl "180+1"]
[Date "2023.08.15"]
[WhiteClock "0:00:00"]
[BlackClock "0:00:17"]
[Board "169"]

1. e4 {[%clk 0:03:00]}  c6 {[%clk 0:02:54]} 2. d4 {[%clk 0:02:55]}  d5 {[%clk 0:02:54]} 3. e5 {[%clk 0:02:52]}  Bf5 {[%clk 0:02:53]} 4. h4 {[%clk 0:02:51]}  h5 {[%clk 0:02:53]} 5. Bd3 {[%clk 0:02:45]}  Bxd3 {[%clk 0:02:53]} 6. Qxd3 {[%clk 0:02:46]}  Qa5+ {[%clk 0:02:53]} 7. Nd2 {[%clk 0:02:44]}  Qa6 {[%clk 0:02:45]} 8. c4 {[%clk 0:02:42]}  e6 {[%clk 0:02:44]} 9. Ngf3 {[%clk 0:02:40]}  c5 {[%clk 0:02:43]} 10. O-O {[%clk 0:02:35]}  Nc6 {[%clk 0:02:42]} 11. Re1 {[%clk 0:01:55]}  Nh6 {[%clk 0:02:38]} 12. a3 {[%clk 0:01:51]}  Nf5 {[%clk 0:02:35]} 13. dxc5 {[%clk 0:01:51]}  Bxc5 {[%clk 0:02:27]} 14. b4 {[%clk 0:01:25]}  Bxb4 {[%clk 0:01:35]} 15. axb4 {[%clk 0:01:25]}  Qxa1 {[%clk 0:01:35]} 16. cxd5 {[%clk 0:01:25]}  Nce7 {[%clk 0:01:19]} 17. d6 {[%clk 0:01:10]}  Nd5 {[%clk 0:01:11]} 18. Qb5+ {[%clk 0:01:09]}  Kf8 {[%clk 0:01:07]} 19. Qxb7 {[%clk 0:01:08]}  Re8 {[%clk 0:01:04]} 20. Ne4 {[%clk 0:00:32]}  Qa4 {[%clk 0:00:44]} 21. Neg5 {[%clk 0:00:29]}  Nh6 {[%clk 0:00:37]} 22. Bd2 {[%clk 0:00:23]}  Rd8 {[%clk 0:00:33]} 23. Rc1 {[%clk 0:00:20]}  Kg8 {[%clk 0:00:24]} 24. Rc8 {[%clk 0:00:20]}  Qe8 {[%clk 0:00:20]} 25. d7 {[%clk 0:00:14]}  Qe7 {[%clk 0:00:19]} 26. Rxd8+ {[%clk 0:00:14]}  Qxd8 {[%clk 0:00:20]} 27. Nxe6 {[%clk 0:00:13]}  fxe6 {[%clk 0:00:19]} 28. Bg5 {[%clk 0:00:09]}  Ne7 {[%clk 0:00:18]} 29. Nd4 {[%clk 0:00:05]}  Kf7 {[%clk 0:00:18]} 30. f4 {[%clk 0:00:00]}  Nhf5 {[%clk 0:00:17]} 0-1


[Site "https://www.chess.com"]

[Event "Titled Tuesday Blitz August 15 Early 2023"]
[White "Stangl, Anita, Dr."]
[Black "Rivas Garcia, Victor"]
[WhiteFideId "4608801"]
[BlackFideId "2217740"]
[WhiteElo "2085"]
[BlackElo "2232"]
[Result "1/2-1/2"]
[Round "8"]
[TimeControl "180+1"]
[Date "2023.08.15"]
[WhiteClock "0:00:18"]
[BlackClock "0:00:13"]
[Board "171"]

1. e4 {[%clk 0:03:00]}  c5 {[%clk 0:02:57]} 2. Nf3 {[%clk 0:02:59]}  Nc6 {[%clk 0:02:57]} 3. d4 {[%clk 0:03:00]}  cxd4 {[%clk 0:02:56]} 4. Nxd4 {[%clk 0:02:59]}  Nf6 {[%clk 0:02:57]} 5. Nc3 {[%clk 0:02:59]}  e5 {[%clk 0:02:57]} 6. Nf5 {[%clk 0:02:58]}  d5 {[%clk 0:02:57]} 7. exd5 {[%clk 0:02:59]}  Bxf5 {[%clk 0:02:56]} 8. dxc6 {[%clk 0:02:59]}  bxc6 {[%clk 0:02:56]} 9. Qf3 {[%clk 0:02:51]}  Qd7 {[%clk 0:02:56]} 10. Bd3 {[%clk 0:02:39]}  Bxd3 {[%clk 0:02:46]} 11. cxd3 {[%clk 0:02:33]}  Be7 {[%clk 0:02:44]} 12. O-O {[%clk 0:02:32]}  O-O {[%clk 0:02:43]} 13. Re1 {[%clk 0:02:32]}  Qc7 {[%clk 0:02:00]} 14. Bg5 {[%clk 0:02:29]}  Rad8 {[%clk 0:01:52]} 15. Bxf6 {[%clk 0:02:25]}  Bxf6 {[%clk 0:01:51]} 16. Ne4 {[%clk 0:02:25]}  Be7 {[%clk 0:01:50]} 17. Rac1 {[%clk 0:02:19]}  f5 {[%clk 0:01:43]} 18. Nc5 {[%clk 0:02:16]}  Rf6 {[%clk 0:01:28]} 19. Qg3 {[%clk 0:02:07]}  Rd5 {[%clk 0:01:26]} 20. d4 {[%clk 0:02:01]}  Bxc5 {[%clk 0:01:22]} 21. Rxc5 {[%clk 0:01:52]}  Rxc5 {[%clk 0:01:19]} 22. dxc5 {[%clk 0:01:52]}  f4 {[%clk 0:01:16]} 23. Qc3 {[%clk 0:01:51]}  Re6 {[%clk 0:01:14]} 24. Qc4 {[%clk 0:01:50]}  Kf7 {[%clk 0:01:13]} 25. Rd1 {[%clk 0:01:48]}  Kf6 {[%clk 0:01:11]} 26. Qe4 {[%clk 0:01:45]}  g6 {[%clk 0:01:09]} 27. g3 {[%clk 0:01:42]}  fxg3 {[%clk 0:01:03]} 28. fxg3 {[%clk 0:01:41]}  Kg7 {[%clk 0:01:03]} 29. Qd3 {[%clk 0:01:29]}  Qe7 {[%clk 0:00:58]} 30. Qd8 {[%clk 0:01:17]}  Qxc5+ {[%clk 0:00:56]} 31. Kg2 {[%clk 0:01:15]}  Qc2+ {[%clk 0:00:44]} 32. Rd2 {[%clk 0:00:59]}  Qe4+ {[%clk 0:00:43]} 33. Kh3 {[%clk 0:00:57]}  Qf5+ {[%clk 0:00:40]} 34. Kg2 {[%clk 0:00:56]}  Rf6 {[%clk 0:00:35]} 35. Rd7+ {[%clk 0:00:46]}  Kh6 {[%clk 0:00:34]} 36. Rd1 {[%clk 0:00:38]}  Qf2+ {[%clk 0:00:28]} 37. Kh3 {[%clk 0:00:38]}  Qf5+ {[%clk 0:00:26]} 38. Kg2 {[%clk 0:00:38]}  e4 {[%clk 0:00:26]} 39. Qd2+ {[%clk 0:00:36]}  g5 {[%clk 0:00:25]} 40. h4 {[%clk 0:00:29]}  Qf3+ {[%clk 0:00:21]} 41. Kh3 {[%clk 0:00:29]}  e3 {[%clk 0:00:21]} 42. hxg5+ {[%clk 0:00:19]}  Kxg5 {[%clk 0:00:21]} 43. Qd8 {[%clk 0:00:18]}  Qh5+ {[%clk 0:00:17]} 44. Kg2 {[%clk 0:00:18]}  Qf3+ {[%clk 0:00:17]} 45. Kh3 {[%clk 0:00:19]}  Qh5+ {[%clk 0:00:12]} 46. Kg2 {[%clk 0:00:18]}  Qf3+ {[%clk 0:00:13]} 47. Kh3 {[%clk 0:00:18]} 1/2-1/2


[Site "https://www.chess.com"]

[Event "Titled Tuesday Blitz August 15 Early 2023"]
[White "Petre, Nad-Titus"]
[Black "Grigoryan, Meri"]
[WhiteFideId "1204165"]
[BlackFideId "13300571"]
[WhiteElo "2574"]
[BlackElo "2117"]
[Result "1-0"]
[Round "8"]
[TimeControl "180+1"]
[Date "2023.08.15"]
[WhiteClock "0:00:56"]
[BlackClock "0:00:00"]
[Board "173"]

1. Nf3 {[%clk 0:03:00]}  d5 {[%clk 0:02:57]} 2. e3 {[%clk 0:03:00]}  Nf6 {[%clk 0:02:56]} 3. c4 {[%clk 0:03:01]}  c6 {[%clk 0:02:56]} 4. Nc3 {[%clk 0:03:01]}  Bg4 {[%clk 0:02:55]} 5. Qb3 {[%clk 0:02:56]}  Qb6 {[%clk 0:02:44]} 6. Qxb6 {[%clk 0:02:49]}  axb6 {[%clk 0:02:43]} 7. cxd5 {[%clk 0:02:50]}  Bxf3 {[%clk 0:02:41]} 8. gxf3 {[%clk 0:02:49]}  Nxd5 {[%clk 0:02:42]} 9. Nxd5 {[%clk 0:02:34]}  cxd5 {[%clk 0:02:42]} 10. a3 {[%clk 0:02:28]}  Nc6 {[%clk 0:02:41]} 11. Rb1 {[%clk 0:02:28]}  e5 {[%clk 0:02:40]} 12. b4 {[%clk 0:02:25]}  d4 {[%clk 0:02:30]} 13. Bb2 {[%clk 0:02:19]}  dxe3 {[%clk 0:02:03]} 14. fxe3 {[%clk 0:02:20]}  f6 {[%clk 0:02:01]} 15. Bb5 {[%clk 0:02:18]}  Bd6 {[%clk 0:01:56]} 16. Rc1 {[%clk 0:02:12]}  Kd7 {[%clk 0:01:51]} 17. h4 {[%clk 0:02:12]}  h5 {[%clk 0:01:48]} 18. Rg1 {[%clk 0:02:11]}  Bf8 {[%clk 0:01:42]} 19. Ke2 {[%clk 0:02:01]}  Rc8 {[%clk 0:01:30]} 20. Bd3 {[%clk 0:02:00]}  Ne7 {[%clk 0:01:22]} 21. Bb5+ {[%clk 0:01:54]}  Kd8 {[%clk 0:01:21]} 22. d4 {[%clk 0:01:52]}  Rxc1 {[%clk 0:01:20]} 23. Rxc1 {[%clk 0:01:50]}  exd4 {[%clk 0:01:17]} 24. Bxd4 {[%clk 0:01:51]}  Nc8 {[%clk 0:01:14]} 25. Rd1 {[%clk 0:01:47]}  Kc7 {[%clk 0:01:09]} 26. Rc1+ {[%clk 0:01:39]}  Kb8 {[%clk 0:01:09]} 27. Bd7 {[%clk 0:01:35]}  Bd6 {[%clk 0:01:09]} 28. f4 {[%clk 0:01:29]}  Bc7 {[%clk 0:01:02]} 29. Rg1 {[%clk 0:01:24]}  Nd6 {[%clk 0:00:41]} 30. Rxg7 {[%clk 0:01:20]}  Ne4 {[%clk 0:00:37]} 31. Re7 {[%clk 0:01:15]}  Ng3+ {[%clk 0:00:25]} 32. Kf3 {[%clk 0:01:15]}  Rg8 {[%clk 0:00:25]} 33. Bxf6 {[%clk 0:01:09]}  Nf1 {[%clk 0:00:22]} 34. Re8+ {[%clk 0:01:09]}  Rxe8 {[%clk 0:00:22]} 35. Bxe8 {[%clk 0:01:10]}  Nd2+ {[%clk 0:00:20]} 36. Ke2 {[%clk 0:01:10]}  Nc4 {[%clk 0:00:20]} 37. a4 {[%clk 0:01:04]}  Nd6 {[%clk 0:00:15]} 38. Bxh5 {[%clk 0:01:02]}  Nf5 {[%clk 0:00:16]} 39. Bg6 {[%clk 0:00:58]}  Nd6 {[%clk 0:00:09]} 40. h5 {[%clk 0:00:57]}  Nc4 {[%clk 0:00:00]} 41. h6 {[%clk 0:00:56]} 1-0


[Site "https://www.chess.com"]

[Event "Titled Tuesday Blitz August 15 Early 2023"]
[White "Ai, Evan"]
[Black "Gyulamiryan-koryun"]
[WhiteFideId "2094770"]
[WhiteElo "2268"]
[BlackElo "2018"]
[Result "1-0"]
[Round "8"]
[TimeControl "180+1"]
[Date "2023.08.15"]
[WhiteClock "0:01:21"]
[BlackClock "0:00:09"]
[Board "177"]

1. e4 {[%clk 0:03:00]}  c5 {[%clk 0:02:59]} 2. Nf3 {[%clk 0:03:00]}  e6 {[%clk 0:02:57]} 3. d4 {[%clk 0:02:59]}  cxd4 {[%clk 0:02:58]} 4. Nxd4 {[%clk 0:03:00]}  Nf6 {[%clk 0:02:58]} 5. Nc3 {[%clk 0:03:00]}  Nc6 {[%clk 0:02:57]} 6. Nxc6 {[%clk 0:03:00]}  bxc6 {[%clk 0:02:57]} 7. e5 {[%clk 0:03:01]}  Nd5 {[%clk 0:02:57]} 8. Ne4 {[%clk 0:03:01]}  Qc7 {[%clk 0:02:57]} 9. f4 {[%clk 0:03:02]}  Qb6 {[%clk 0:02:58]} 10. c4 {[%clk 0:03:02]}  Bb4+ {[%clk 0:02:55]} 11. Ke2 {[%clk 0:03:02]}  Ba6 {[%clk 0:02:50]} 12. Kf3 {[%clk 0:02:59]}  f5 {[%clk 0:02:45]} 13. exf6 {[%clk 0:02:54]}  Nxf6 {[%clk 0:02:42]} 14. Be3 {[%clk 0:02:54]}  Qc7 {[%clk 0:02:24]} 15. Nxf6+ {[%clk 0:02:52]}  gxf6 {[%clk 0:02:24]} 16. Kf2 {[%clk 0:02:51]}  Bd6 {[%clk 0:01:59]} 17. Qh5+ {[%clk 0:02:35]}  Ke7 {[%clk 0:01:51]} 18. Qh6 {[%clk 0:02:23]}  Rag8 {[%clk 0:01:41]} 19. c5 {[%clk 0:02:15]}  Be5 {[%clk 0:00:40]} 20. fxe5 {[%clk 0:02:02]}  Qxe5 {[%clk 0:00:40]} 21. Bxa6 {[%clk 0:02:00]}  Qxb2+ {[%clk 0:00:36]} 22. Bd2 {[%clk 0:01:51]}  Rg6 {[%clk 0:00:19]} 23. Qf4 {[%clk 0:01:41]}  Rhg8 {[%clk 0:00:18]} 24. Qd6+ {[%clk 0:01:30]}  Ke8 {[%clk 0:00:18]} 25. g3 {[%clk 0:01:29]}  Rg5 {[%clk 0:00:12]} 26. Rab1 {[%clk 0:01:23]}  Qxa2 {[%clk 0:00:11]} 27. Rb8+ {[%clk 0:01:23]}  Kf7 {[%clk 0:00:11]} 28. Qxd7+ {[%clk 0:01:23]}  Kg6 {[%clk 0:00:11]} 29. Rxg8+ {[%clk 0:01:24]}  Kf5 {[%clk 0:00:11]} 30. Qd3+ {[%clk 0:01:22]}  Ke5 {[%clk 0:00:09]} 31. Re1# {[%clk 0:01:21]} 1-0


[Site "https://www.chess.com"]

[Event "Titled Tuesday Blitz August 15 Early 2023"]
[White "Dilmukhametov, Artur"]
[Black "Navyblue1"]
[WhiteFideId "24179922"]
[WhiteElo "2232"]
[BlackElo "1951"]
[Result "0-1"]
[Round "8"]
[TimeControl "180+1"]
[Date "2023.08.15"]
[WhiteClock "0:00:09"]
[BlackClock "0:00:22"]
[Board "178"]

1. e4 {[%clk 0:03:00]}  c5 {[%clk 0:02:56]} 2. d4 {[%clk 0:02:59]}  cxd4 {[%clk 0:02:54]} 3. c3 {[%clk 0:03:00]}  Nf6 {[%clk 0:02:53]} 4. e5 {[%clk 0:03:00]}  Nd5 {[%clk 0:02:52]} 5. cxd4 {[%clk 0:03:00]}  d6 {[%clk 0:02:47]} 6. exd6 {[%clk 0:03:01]}  Qxd6 {[%clk 0:02:38]} 7. Nf3 {[%clk 0:02:58]}  Nc6 {[%clk 0:02:34]} 8. Nc3 {[%clk 0:02:56]}  Bg4 {[%clk 0:02:29]} 9. Be2 {[%clk 0:02:53]}  e6 {[%clk 0:02:23]} 10. O-O {[%clk 0:02:50]}  Be7 {[%clk 0:02:16]} 11. Re1 {[%clk 0:02:11]}  O-O {[%clk 0:02:06]} 12. h3 {[%clk 0:02:08]}  Bh5 {[%clk 0:01:46]} 13. Ne4 {[%clk 0:02:06]}  Qc7 {[%clk 0:01:36]} 14. Ng3 {[%clk 0:02:03]}  Bxf3 {[%clk 0:01:22]} 15. Bxf3 {[%clk 0:02:02]}  Rfd8 {[%clk 0:01:21]} 16. a3 {[%clk 0:01:44]}  Bf6 {[%clk 0:01:14]} 17. Bxd5 {[%clk 0:01:26]}  Rxd5 {[%clk 0:01:09]} 18. Be3 {[%clk 0:01:22]}  Bxd4 {[%clk 0:01:06]} 19. Qb3 {[%clk 0:01:14]}  Bxe3 {[%clk 0:01:03]} 20. Rxe3 {[%clk 0:01:15]}  Rad8 {[%clk 0:01:00]} 21. Rc1 {[%clk 0:01:09]}  Qe7 {[%clk 0:00:55]} 22. Rec3 {[%clk 0:00:47]}  h6 {[%clk 0:00:50]} 23. Ne4 {[%clk 0:00:32]}  Nd4 {[%clk 0:00:38]} 24. Qd1 {[%clk 0:00:27]}  Nb5 {[%clk 0:00:32]} 25. Qf3 {[%clk 0:00:11]}  Nxc3 {[%clk 0:00:31]} 26. Nxc3 {[%clk 0:00:12]}  Rc5 {[%clk 0:00:28]} 27. Re1 {[%clk 0:00:11]}  a6 {[%clk 0:00:26]} 28. Qg4 {[%clk 0:00:10]}  Rc7 {[%clk 0:00:24]} 29. Re3 {[%clk 0:00:07]}  Qf6 {[%clk 0:00:22]} 30. Rg3 {[%clk 0:00:07]}  g6 {[%clk 0:00:20]} 31. Ne4 {[%clk 0:00:06]}  Qg7 {[%clk 0:00:20]} 32. h4 {[%clk 0:00:07]}  Rd5 {[%clk 0:00:20]} 33. Qf4 {[%clk 0:00:03]}  e5 {[%clk 0:00:20]} 34. Qe3 {[%clk 0:00:02]}  Rcd7 {[%clk 0:00:19]} 35. Qb3 {[%clk 0:00:02]}  Rd1+ {[%clk 0:00:19]} 36. Kh2 {[%clk 0:00:02]}  Kh7 {[%clk 0:00:19]} 37. Qf3 {[%clk 0:00:02]}  R1d4 {[%clk 0:00:18]} 38. Nf6+ {[%clk 0:00:02]}  Kh8 {[%clk 0:00:18]} 39. Nxd7 {[%clk 0:00:03]}  Rxd7 {[%clk 0:00:18]} 40. Qc3 {[%clk 0:00:04]}  Kh7 {[%clk 0:00:17]} 41. Qc8 {[%clk 0:00:04]}  f6 {[%clk 0:00:17]} 42. Qc3 {[%clk 0:00:04]}  Qe7 {[%clk 0:00:16]} 43. Rd3 {[%clk 0:00:03]}  Rxd3 {[%clk 0:00:16]} 44. Qxd3 {[%clk 0:00:04]}  f5 {[%clk 0:00:16]} 45. h5 {[%clk 0:00:04]}  Kg7 {[%clk 0:00:15]} 46. Qg3 {[%clk 0:00:03]}  g5 {[%clk 0:00:15]} 47. Qb3 {[%clk 0:00:03]}  e4 {[%clk 0:00:15]} 48. Qc3+ {[%clk 0:00:04]}  Qf6 {[%clk 0:00:14]} 49. g3 {[%clk 0:00:05]}  Qxc3 {[%clk 0:00:14]} 50. bxc3 {[%clk 0:00:06]}  Kf6 {[%clk 0:00:14]} 51. Kg1 {[%clk 0:00:06]}  Ke5 {[%clk 0:00:15]} 52. Kf1 {[%clk 0:00:07]}  Kd5 {[%clk 0:00:16]} 53. Ke2 {[%clk 0:00:08]}  Kc4 {[%clk 0:00:16]} 54. Kd2 {[%clk 0:00:09]}  f4 {[%clk 0:00:16]} 55. gxf4 {[%clk 0:00:08]}  gxf4 {[%clk 0:00:17]} 56. Kc2 {[%clk 0:00:09]}  b5 {[%clk 0:00:17]} 57. Kb2 {[%clk 0:00:09]}  Kd3 {[%clk 0:00:16]} 58. a4 {[%clk 0:00:07]}  bxa4 {[%clk 0:00:16]} 59. Ka3 {[%clk 0:00:04]}  Kxc3 {[%clk 0:00:16]} 60. Kxa4 {[%clk 0:00:05]}  e3 {[%clk 0:00:16]} 61. Ka5 {[%clk 0:00:06]}  e2 {[%clk 0:00:16]} 62. Kxa6 {[%clk 0:00:07]}  e1=Q {[%clk 0:00:17]} 63. Kb5 {[%clk 0:00:08]}  Qxf2 {[%clk 0:00:17]} 64. Kc6 {[%clk 0:00:08]}  Qg3 {[%clk 0:00:18]} 65. Kd5 {[%clk 0:00:09]}  Qg5+ {[%clk 0:00:19]} 66. Ke6 {[%clk 0:00:10]}  Qxh5 {[%clk 0:00:19]} 67. Ke7 {[%clk 0:00:10]}  Qf3 {[%clk 0:00:20]} 68. Kf6 {[%clk 0:00:11]}  Qg3 {[%clk 0:00:21]} 69. Kf5 {[%clk 0:00:12]}  f3 {[%clk 0:00:21]} 70. Kf6 {[%clk 0:00:09]}  f2 {[%clk 0:00:22]} 0-1


[Site "https://www.chess.com"]